[Event "Titled Tuesday Blitz November 07 Late 2023"]
[White "Pinto, Daniel"]
[Black "Bogaudinov, Rushan"]
[WhiteFideId "3303144"]
[BlackFideId "4129288"]
[WhiteElo "2502"]
[BlackElo "2315"]
[Result "1-0"]
[Round "2"]
[TimeControl "180+1"]
[Date "2023.11.07"]
[WhiteClock "0:00:17"]
[BlackClock "0:00:00"]
[Board "125"]

1. c4 {[%clk 0:03:00]}  e5 {[%clk 0:02:59]} 2. Nc3 {[%clk 0:03:01]}  Nf6 {[%clk 0:02:59]} 3. e4 {[%clk 0:02:53]}  c6 {[%clk 0:02:55]} 4. Nf3 {[%clk 0:02:48]}  Bb4 {[%clk 0:02:53]} 5. Nxe5 {[%clk 0:02:17]}  O-O {[%clk 0:02:53]} 6. Nd3 {[%clk 0:02:09]}  Bxc3 {[%clk 0:02:44]} 7. dxc3 {[%clk 0:02:10]}  Nxe4 {[%clk 0:02:44]} 8. Be2 {[%clk 0:02:10]}  d5 {[%clk 0:02:43]} 9. cxd5 {[%clk 0:02:08]}  cxd5 {[%clk 0:02:44]} 10. O-O {[%clk 0:02:09]}  Nc6 {[%clk 0:02:42]} 11. Bf3 {[%clk 0:01:58]}  Bf5 {[%clk 0:02:36]} 12. Re1 {[%clk 0:01:54]}  Re8 {[%clk 0:02:36]} 13. Bg4 {[%clk 0:01:42]}  Bg6 {[%clk 0:02:31]} 14. Nf4 {[%clk 0:01:40]}  Ne5 {[%clk 0:02:08]} 15. Be2 {[%clk 0:01:28]}  Nf6 {[%clk 0:01:49]} 16. Nxg6 {[%clk 0:01:24]}  Nxg6 {[%clk 0:01:49]} 17. Be3 {[%clk 0:01:23]}  Ne4 {[%clk 0:01:42]} 18. Qd4 {[%clk 0:01:13]}  Qf6 {[%clk 0:01:32]} 19. Rad1 {[%clk 0:01:06]}  Qxd4 {[%clk 0:01:32]} 20. Rxd4 {[%clk 0:01:07]}  Ne7 {[%clk 0:01:06]} 21. g4 {[%clk 0:01:03]}  h6 {[%clk 0:00:59]} 22. Bb5 {[%clk 0:00:51]}  Nc6 {[%clk 0:00:53]} 23. Rxd5 {[%clk 0:00:51]}  Nf6 {[%clk 0:00:53]} 24. Bxc6 {[%clk 0:00:44]}  bxc6 {[%clk 0:00:53]} 25. Rd4 {[%clk 0:00:44]}  Rab8 {[%clk 0:00:42]} 26. b3 {[%clk 0:00:38]}  Re6 {[%clk 0:00:38]} 27. Bd2 {[%clk 0:00:28]}  Rbe8 {[%clk 0:00:35]} 28. Rxe6 {[%clk 0:00:25]}  Rxe6 {[%clk 0:00:36]} 29. Kf1 {[%clk 0:00:25]}  Ne4 {[%clk 0:00:31]} 30. Be1 {[%clk 0:00:24]}  Nf6 {[%clk 0:00:20]} 31. f3 {[%clk 0:00:20]}  c5 {[%clk 0:00:20]} 32. Rd3 {[%clk 0:00:19]}  Ra6 {[%clk 0:00:15]} 33. Rd2 {[%clk 0:00:17]}  Kh7 {[%clk 0:00:12]} 34. Bf2 {[%clk 0:00:17]}  c4 {[%clk 0:00:12]} 35. bxc4 {[%clk 0:00:16]}  Ra3 {[%clk 0:00:12]} 36. Bd4 {[%clk 0:00:15]}  Nd7 {[%clk 0:00:12]} 37. c5 {[%clk 0:00:16]}  Nb8 {[%clk 0:00:11]} 38. Ke2 {[%clk 0:00:13]}  Nc6 {[%clk 0:00:11]} 39. Kd3 {[%clk 0:00:13]}  a6 {[%clk 0:00:10]} 40. Kc4 {[%clk 0:00:13]}  Ra4+ {[%clk 0:00:10]} 41. Kd5 {[%clk 0:00:13]}  Ne7+ {[%clk 0:00:09]} 42. Kd6 {[%clk 0:00:14]}  Nc8+ {[%clk 0:00:09]} 43. Kd7 {[%clk 0:00:14]}  Na7 {[%clk 0:00:09]} 44. c6 {[%clk 0:00:14]}  Nb5 {[%clk 0:00:09]} 45. c7 {[%clk 0:00:14]}  Nxc7 {[%clk 0:00:10]} 46. Kxc7 {[%clk 0:00:15]}  Kg6 {[%clk 0:00:10]} 47. h4 {[%clk 0:00:15]}  h5 {[%clk 0:00:10]} 48. Kb6 {[%clk 0:00:15]}  hxg4 {[%clk 0:00:08]} 49. fxg4 {[%clk 0:00:16]}  Rc4 {[%clk 0:00:08]} 50. Kxa6 {[%clk 0:00:16]}  f5 {[%clk 0:00:08]} 51. gxf5+ {[%clk 0:00:15]}  Kxf5 {[%clk 0:00:08]} 52. Bxg7 {[%clk 0:00:16]}  Rc6+ {[%clk 0:00:08]} 53. Kb5 {[%clk 0:00:16]}  Rg6 {[%clk 0:00:08]} 54. Bd4 {[%clk 0:00:16]}  Ke4 {[%clk 0:00:08]} 55. c4 {[%clk 0:00:16]}  Rh6 {[%clk 0:00:07]} 56. Bb6 {[%clk 0:00:15]}  Rh5+ {[%clk 0:00:07]} 57. c5 {[%clk 0:00:15]}  Ke3 {[%clk 0:00:07]} 58. Rb2 {[%clk 0:00:15]}  Rxh4 {[%clk 0:00:07]} 59. a4 {[%clk 0:00:15]}  Kd3 {[%clk 0:00:08]} 60. a5 {[%clk 0:00:15]}  Kc3 {[%clk 0:00:08]} 61. Rb1 {[%clk 0:00:16]}  Kc2 {[%clk 0:00:08]} 62. Rb4 {[%clk 0:00:16]}  Rh8 {[%clk 0:00:07]} 63. a6 {[%clk 0:00:17]}  Kc3 {[%clk 0:00:07]} 64. Rc4+ {[%clk 0:00:17]}  Kb3 {[%clk 0:00:07]} 65. Rg4 {[%clk 0:00:18]}  Ka3 {[%clk 0:00:07]} 66. Rg3+ {[%clk 0:00:18]}  Ka2 {[%clk 0:00:07]} 67. a7 {[%clk 0:00:18]}  Kb2 {[%clk 0:00:06]} 68. Ka6 {[%clk 0:00:18]}  Kb1 {[%clk 0:00:06]} 69. c6 {[%clk 0:00:19]}  Rh6 {[%clk 0:00:06]} 70. Kb7 {[%clk 0:00:17]}  Rh5 {[%clk 0:00:07]} 71. a8=Q {[%clk 0:00:17]}  Kc2 {[%clk 0:00:00]} 72. Qa2+ {[%clk 0:00:17]} 1-0


[Site "https://www.chess.com"]

[Event "Titled Tuesday Blitz November 07 Late 2023"]
[White "Musovic, Armin"]
[Black "Colivet Gamboa, Julio Cesar"]
[WhiteFideId "939935"]
[BlackFideId "3949583"]
[WhiteElo "2491"]
[BlackElo "2301"]
[Result "1-0"]
[Round "2"]
[TimeControl "180+1"]
[Date "2023.11.07"]
[WhiteClock "0:00:17"]
[BlackClock "0:00:09"]
[Board "130"]

1. a3 {[%clk 0:03:00]}  Nf6 {[%clk 0:02:56]} 2. Nf3 {[%clk 0:02:59]}  g6 {[%clk 0:02:55]} 3. Nc3 {[%clk 0:02:59]}  Bg7 {[%clk 0:02:56]} 4. e4 {[%clk 0:02:59]}  O-O {[%clk 0:02:56]} 5. Bc4 {[%clk 0:02:58]}  d6 {[%clk 0:02:56]} 6. d3 {[%clk 0:02:58]}  Nc6 {[%clk 0:02:56]} 7. Ba2 {[%clk 0:02:58]}  e6 {[%clk 0:02:53]} 8. O-O {[%clk 0:02:58]}  b6 {[%clk 0:02:54]} 9. Bg5 {[%clk 0:02:58]}  Bb7 {[%clk 0:02:53]} 10. Re1 {[%clk 0:02:58]}  Qd7 {[%clk 0:02:54]} 11. Qd2 {[%clk 0:02:58]}  Rfe8 {[%clk 0:02:51]} 12. h3 {[%clk 0:02:58]}  e5 {[%clk 0:02:44]} 13. Ne2 {[%clk 0:02:54]}  d5 {[%clk 0:02:40]} 14. Bxf6 {[%clk 0:02:52]}  Bxf6 {[%clk 0:02:41]} 15. Bxd5 {[%clk 0:02:51]}  Rad8 {[%clk 0:02:41]} 16. Qh6 {[%clk 0:02:48]}  Bg7 {[%clk 0:02:38]} 17. Qh4 {[%clk 0:02:48]}  h6 {[%clk 0:02:34]} 18. Qg3 {[%clk 0:02:42]}  Kh7 {[%clk 0:02:33]} 19. h4 {[%clk 0:02:38]}  f5 {[%clk 0:02:27]} 20. h5 {[%clk 0:02:22]}  g5 {[%clk 0:02:16]} 21. Nc3 {[%clk 0:01:59]}  f4 {[%clk 0:02:12]} 22. Qh2 {[%clk 0:01:58]}  Bc8 {[%clk 0:02:02]} 23. Rad1 {[%clk 0:01:43]}  Ne7 {[%clk 0:01:59]} 24. Bb3 {[%clk 0:01:31]}  c5 {[%clk 0:01:56]} 25. Ba4 {[%clk 0:01:09]}  Nc6 {[%clk 0:01:56]} 26. Nd5 {[%clk 0:01:09]}  Qd6 {[%clk 0:01:53]} 27. c4 {[%clk 0:01:08]}  Bg4 {[%clk 0:01:50]} 28. Bxc6 {[%clk 0:01:05]}  Qxc6 {[%clk 0:01:48]} 29. Qh1 {[%clk 0:01:05]}  Qd7 {[%clk 0:01:41]} 30. Rc1 {[%clk 0:01:04]}  Qf7 {[%clk 0:01:40]} 31. Nh2 {[%clk 0:00:56]}  Bxh5 {[%clk 0:01:39]} 32. f3 {[%clk 0:00:57]}  Rd6 {[%clk 0:01:25]} 33. Rf1 {[%clk 0:00:55]}  Rg8 {[%clk 0:01:22]} 34. Ng4 {[%clk 0:00:55]}  Bh8 {[%clk 0:01:17]} 35. b4 {[%clk 0:00:52]}  cxb4 {[%clk 0:01:14]} 36. axb4 {[%clk 0:00:53]}  Bxg4 {[%clk 0:01:11]} 37. fxg4 {[%clk 0:00:53]}  Qd7 {[%clk 0:01:09]} 38. Qh3 {[%clk 0:00:46]}  Rc8 {[%clk 0:01:07]} 39. Kh2 {[%clk 0:00:45]}  h5 {[%clk 0:00:55]} 40. gxh5 {[%clk 0:00:38]}  g4 {[%clk 0:00:53]} 41. Qh4 {[%clk 0:00:36]}  Rh6 {[%clk 0:00:50]} 42. c5 {[%clk 0:00:36]}  bxc5 {[%clk 0:00:48]} 43. bxc5 {[%clk 0:00:34]}  Rcc6 {[%clk 0:00:48]} 44. Kg1 {[%clk 0:00:29]}  Qc8 {[%clk 0:00:39]} 45. Qg5 {[%clk 0:00:28]}  Rxc5 {[%clk 0:00:33]} 46. Ra1 {[%clk 0:00:28]}  a6 {[%clk 0:00:25]} 47. Rfb1 {[%clk 0:00:27]}  Bg7 {[%clk 0:00:18]} 48. Ne7 {[%clk 0:00:20]}  Qd8 {[%clk 0:00:15]} 49. Qf5+ {[%clk 0:00:18]}  Kh8 {[%clk 0:00:13]} 50. Ng6+ {[%clk 0:00:18]}  Kg8 {[%clk 0:00:12]} 51. Rb7 {[%clk 0:00:16]}  Qd4+ {[%clk 0:00:12]} 52. Kh2 {[%clk 0:00:16]}  Qxa1 {[%clk 0:00:09]} 53. Qf7+ {[%clk 0:00:16]}  Kh7 {[%clk 0:00:09]} 54. Qxg7# {[%clk 0:00:17]} 1-0


[Site "https://www.chess.com"]

[Event "Titled Tuesday Blitz November 07 Late 2023"]
[White "ilya2700"]
[Black "Czerw, Dawid"]
[BlackFideId "1145746"]
[WhiteElo "2301"]
[BlackElo "2487"]
[Result "0-1"]
[Round "2"]
[TimeControl "180+1"]
[Date "2023.11.07"]
[WhiteClock "0:00:00"]
[BlackClock "0:00:43"]
[Board "131"]

1. d4 {[%clk 0:03:00]}  d5 {[%clk 0:02:59]} 2. c4 {[%clk 0:03:00]}  c6 {[%clk 0:03:00]} 3. Nf3 {[%clk 0:03:00]}  Nf6 {[%clk 0:03:00]} 4. Nc3 {[%clk 0:03:00]}  a6 {[%clk 0:03:00]} 5. cxd5 {[%clk 0:03:00]}  cxd5 {[%clk 0:03:00]} 6. Bf4 {[%clk 0:03:01]}  Nc6 {[%clk 0:03:01]} 7. e3 {[%clk 0:03:01]}  Bg4 {[%clk 0:03:01]} 8. Bd3 {[%clk 0:03:01]}  e6 {[%clk 0:03:00]} 9. Rc1 {[%clk 0:03:00]}  Bd6 {[%clk 0:03:00]} 10. Bg3 {[%clk 0:02:56]}  O-O {[%clk 0:02:59]} 11. O-O {[%clk 0:02:51]}  Bxg3 {[%clk 0:02:59]} 12. hxg3 {[%clk 0:02:51]}  Qe7 {[%clk 0:02:34]} 13. Qb3 {[%clk 0:02:35]}  b5 {[%clk 0:02:10]} 14. Nxd5 {[%clk 0:02:27]}  Nxd5 {[%clk 0:01:54]} 15. Rxc6 {[%clk 0:02:26]}  Bxf3 {[%clk 0:01:41]} 16. gxf3 {[%clk 0:02:26]}  Qg5 {[%clk 0:01:42]} 17. Be4 {[%clk 0:01:50]}  Nf6 {[%clk 0:01:26]} 18. Rc5 {[%clk 0:01:48]}  Qh6 {[%clk 0:01:21]} 19. Bxa8 {[%clk 0:01:46]}  Rxa8 {[%clk 0:01:22]} 20. Rfc1 {[%clk 0:01:37]}  g5 {[%clk 0:01:20]} 21. Rc8+ {[%clk 0:01:36]}  Rxc8 {[%clk 0:01:20]} 22. Rxc8+ {[%clk 0:01:37]}  Kg7 {[%clk 0:01:21]} 23. Qb4 {[%clk 0:01:28]}  Qh5 {[%clk 0:01:18]} 24. Kg2 {[%clk 0:01:12]}  g4 {[%clk 0:01:14]} 25. Qf8+ {[%clk 0:00:43]}  Kg6 {[%clk 0:01:14]} 26. f4 {[%clk 0:00:17]}  Qd5+ {[%clk 0:01:07]} 27. Kg1 {[%clk 0:00:11]}  Qf3 {[%clk 0:00:59]} 28. Rc7 {[%clk 0:00:10]}  Qd1+ {[%clk 0:00:55]} 29. Kh2 {[%clk 0:00:10]}  Qf1 {[%clk 0:00:46]} 30. Qxf7+ {[%clk 0:00:09]}  Kf5 {[%clk 0:00:44]} 31. Rc5+ {[%clk 0:00:08]}  Ke4 {[%clk 0:00:45]} 32. Qxe6+ {[%clk 0:00:05]}  Kf3 {[%clk 0:00:43]} 33. Qc6+ {[%clk 0:00:02]}  Ne4 {[%clk 0:00:43]} 34. Qxe4+ {[%clk 0:00:00]}  Kxe4 {[%clk 0:00:43]} 0-1


[Site "https://www.chess.com"]

[Event "Titled Tuesday Blitz November 07 Late 2023"]
[White "Mesa Cruz, Juan Carlos"]
[Black "Minko, Dmitry"]
[WhiteFideId "6423400"]
[BlackFideId "24188468"]
[WhiteElo "2292"]
[BlackElo "2485"]
[Result "1-0"]
[Round "2"]
[TimeControl "180+1"]
[Date "2023.11.07"]
[WhiteClock "0:01:30"]
[BlackClock "0:01:47"]
[Board "134"]

1. e4 {[%clk 0:02:57]}  e5 {[%clk 0:02:58]} 2. Nf3 {[%clk 0:02:57]}  Nc6 {[%clk 0:02:57]} 3. Bb5 {[%clk 0:02:57]}  Nf6 {[%clk 0:02:57]} 4. d3 {[%clk 0:02:55]}  Ne7 {[%clk 0:02:57]} 5. O-O {[%clk 0:02:41]}  c6 {[%clk 0:02:58]} 6. Ba4 {[%clk 0:02:41]}  Ng6 {[%clk 0:02:58]} 7. Re1 {[%clk 0:02:37]}  Be7 {[%clk 0:02:59]} 8. c3 {[%clk 0:02:37]}  O-O {[%clk 0:02:59]} 9. Nbd2 {[%clk 0:02:36]}  Qc7 {[%clk 0:02:50]} 10. d4 {[%clk 0:02:36]}  exd4 {[%clk 0:02:39]} 11. cxd4 {[%clk 0:02:37]}  d5 {[%clk 0:02:26]} 12. e5 {[%clk 0:02:35]}  Nd7 {[%clk 0:02:26]} 13. Bc2 {[%clk 0:02:30]}  Re8 {[%clk 0:02:21]} 14. Nf1 {[%clk 0:02:17]}  Ndf8 {[%clk 0:02:20]} 15. Ng3 {[%clk 0:02:15]}  f6 {[%clk 0:02:15]} 16. exf6 {[%clk 0:02:09]}  Bxf6 {[%clk 0:02:15]} 17. Rxe8 {[%clk 0:02:08]}  Ne7 {[%clk 0:02:08]} 18. Qd3 {[%clk 0:01:48]}  g6 {[%clk 0:02:05]} 19. Bh6 {[%clk 0:01:46]}  Bg7 {[%clk 0:02:02]} 20. Qe3 {[%clk 0:01:30]}  Bxh6 {[%clk 0:01:47]} 1-0


[Site "https://www.chess.com"]

[Event "Titled Tuesday Blitz November 07 Late 2023"]
[White "Remolar Gallen, Jose"]
[Black "Dylag, Emilia"]
[WhiteFideId "2215187"]
[BlackFideId "21805172"]
[WhiteElo "2478"]
[BlackElo "2289"]
[Result "1-0"]
[Round "2"]
[TimeControl "180+1"]
[Date "2023.11.07"]
[WhiteClock "0:01:50"]
[BlackClock "0:01:08"]
[Board "135"]

1. d4 {[%clk 0:03:00]}  Nf6 {[%clk 0:02:58]} 2. Nf3 {[%clk 0:02:58]}  e6 {[%clk 0:02:58]} 3. e3 {[%clk 0:02:57]}  d5 {[%clk 0:02:58]} 4. Bd3 {[%clk 0:02:57]}  c5 {[%clk 0:02:57]} 5. b3 {[%clk 0:02:57]}  Nc6 {[%clk 0:02:54]} 6. Bb2 {[%clk 0:02:57]}  cxd4 {[%clk 0:02:53]} 7. exd4 {[%clk 0:02:57]}  Bd6 {[%clk 0:02:50]} 8. O-O {[%clk 0:02:58]}  O-O {[%clk 0:02:48]} 9. a3 {[%clk 0:02:58]}  Qc7 {[%clk 0:02:47]} 10. Qe2 {[%clk 0:02:58]}  b6 {[%clk 0:02:42]} 11. Nbd2 {[%clk 0:02:58]}  Bb7 {[%clk 0:02:41]} 12. Ne5 {[%clk 0:02:56]}  Bxe5 {[%clk 0:02:38]} 13. dxe5 {[%clk 0:02:56]}  Nd7 {[%clk 0:02:38]} 14. f4 {[%clk 0:02:54]}  Rae8 {[%clk 0:02:37]} 15. Rf3 {[%clk 0:02:51]}  f5 {[%clk 0:02:36]} 16. exf6 {[%clk 0:02:50]}  Nxf6 {[%clk 0:02:36]} 17. Re1 {[%clk 0:02:43]}  d4 {[%clk 0:01:45]} 18. Qf2 {[%clk 0:02:22]}  e5 {[%clk 0:01:41]} 19. Qh4 {[%clk 0:01:59]}  exf4 {[%clk 0:01:30]} 20. Rxe8 {[%clk 0:01:57]}  Rxe8 {[%clk 0:01:31]} 21. Rxf4 {[%clk 0:01:52]}  Re2 {[%clk 0:01:08]} 22. Bxe2 {[%clk 0:01:50]} 1-0


[Site "https://www.chess.com"]

[Event "Titled Tuesday Blitz November 07 Late 2023"]
[White "Koc, Przemyslaw"]
[Black "Minina, Veronika"]
[WhiteFideId "1109081"]
[BlackFideId "4174780"]
[WhiteElo "2472"]
[BlackElo "2285"]
[Result "1-0"]
[Round "2"]
[TimeControl "180+1"]
[Date "2023.11.07"]
[WhiteClock "0:01:27"]
[BlackClock "0:00:16"]
[Board "137"]

1. Nf3 {[%clk 0:03:00]}  Nf6 {[%clk 0:02:53]} 2. g3 {[%clk 0:03:01]}  g6 {[%clk 0:02:53]} 3. Bg2 {[%clk 0:03:01]}  Bg7 {[%clk 0:02:54]} 4. O-O {[%clk 0:03:02]}  O-O {[%clk 0:02:51]} 5. d4 {[%clk 0:03:03]}  d6 {[%clk 0:02:46]} 6. c4 {[%clk 0:03:02]}  c6 {[%clk 0:02:43]} 7. Nc3 {[%clk 0:03:02]}  Qa5 {[%clk 0:02:43]} 8. a3 {[%clk 0:02:57]}  Qh5 {[%clk 0:02:43]} 9. b4 {[%clk 0:02:50]}  Bg4 {[%clk 0:02:36]} 10. Bb2 {[%clk 0:02:47]}  Nbd7 {[%clk 0:02:26]} 11. d5 {[%clk 0:02:35]}  c5 {[%clk 0:02:22]} 12. Qd3 {[%clk 0:02:29]}  a5 {[%clk 0:02:14]} 13. bxa5 {[%clk 0:02:26]}  Rxa5 {[%clk 0:02:15]} 14. Nb5 {[%clk 0:02:22]}  Rfa8 {[%clk 0:01:58]} 15. Rfe1 {[%clk 0:02:14]}  Ra4 {[%clk 0:01:43]} 16. e4 {[%clk 0:02:01]}  Nb6 {[%clk 0:01:33]} 17. Rac1 {[%clk 0:02:01]}  Bh3 {[%clk 0:01:30]} 18. Bh1 {[%clk 0:02:00]}  Ng4 {[%clk 0:01:29]} 19. Bxg7 {[%clk 0:01:59]}  Kxg7 {[%clk 0:01:29]} 20. e5 {[%clk 0:01:51]}  dxe5 {[%clk 0:01:17]} 21. d6 {[%clk 0:01:50]}  exd6 {[%clk 0:01:12]} 22. Qxd6 {[%clk 0:01:48]}  Nxc4 {[%clk 0:01:12]} 23. Qxc5 {[%clk 0:01:36]}  Nxa3 {[%clk 0:00:59]} 24. Nd6 {[%clk 0:01:30]}  R4a5 {[%clk 0:00:33]} 25. Qc7 {[%clk 0:01:30]}  Qf5 {[%clk 0:00:28]} 26. Nxf5+ {[%clk 0:01:29]}  gxf5 {[%clk 0:00:16]} 27. Ng5 {[%clk 0:01:27]} 1-0


[Site "https://www.chess.com"]

[Event "Titled Tuesday Blitz November 07 Late 2023"]
[White "Lekic, Dusan"]
[Black "Awoki, Daniel Teidi"]
[WhiteFideId "905330"]
[BlackFideId "2100827"]
[WhiteElo "2469"]
[BlackElo "2282"]
[Result "0-1"]
[Round "2"]
[TimeControl "180+1"]
[Date "2023.11.07"]
[WhiteClock "0:00:39"]
[BlackClock "0:00:21"]
[Board "139"]

1. d4 {[%clk 0:03:00]}  Nf6 {[%clk 0:02:59]} 2. c4 {[%clk 0:02:59]}  e6 {[%clk 0:03:00]} 3. Nc3 {[%clk 0:02:58]}  d5 {[%clk 0:03:00]} 4. Bg5 {[%clk 0:02:56]}  Nbd7 {[%clk 0:03:00]} 5. e3 {[%clk 0:02:55]}  Be7 {[%clk 0:03:00]} 6. Rc1 {[%clk 0:02:53]}  c6 {[%clk 0:03:01]} 7. Bd3 {[%clk 0:02:52]}  O-O {[%clk 0:03:01]} 8. Nf3 {[%clk 0:02:50]}  a6 {[%clk 0:03:00]} 9. a3 {[%clk 0:02:48]}  dxc4 {[%clk 0:03:00]} 10. Bxc4 {[%clk 0:02:48]}  b5 {[%clk 0:03:01]} 11. Ba2 {[%clk 0:02:47]}  c5 {[%clk 0:03:02]} 12. O-O {[%clk 0:02:44]}  cxd4 {[%clk 0:03:01]} 13. Nxd4 {[%clk 0:02:43]}  Bb7 {[%clk 0:03:01]} 14. Qe2 {[%clk 0:02:41]}  Qb6 {[%clk 0:03:00]} 15. Rfd1 {[%clk 0:02:40]}  Rfe8 {[%clk 0:02:59]} 16. e4 {[%clk 0:02:39]}  Rac8 {[%clk 0:02:55]} 17. e5 {[%clk 0:02:35]}  Nd5 {[%clk 0:02:50]} 18. Nxd5 {[%clk 0:02:33]}  Bxd5 {[%clk 0:02:51]} 19. Bxd5 {[%clk 0:02:27]}  Bxg5 {[%clk 0:02:50]} 20. Rxc8 {[%clk 0:02:24]}  Rxc8 {[%clk 0:02:49]} 21. Be4 {[%clk 0:02:20]}  Rc1 {[%clk 0:02:31]} 22. Rxc1 {[%clk 0:02:12]}  Bxc1 {[%clk 0:02:32]} 23. Nf3 {[%clk 0:02:05]}  Qc5 {[%clk 0:02:24]} 24. Bxh7+ {[%clk 0:01:51]}  Kxh7 {[%clk 0:02:18]} 25. Qd3+ {[%clk 0:01:51]}  Kg8 {[%clk 0:02:18]} 26. Qxd7 {[%clk 0:01:50]}  Bxb2 {[%clk 0:02:14]} 27. Qd8+ {[%clk 0:01:50]}  Kh7 {[%clk 0:02:00]} 28. Qd3+ {[%clk 0:01:37]}  Kg8 {[%clk 0:01:56]} 29. h4 {[%clk 0:01:35]}  Qxa3 {[%clk 0:01:42]} 30. Qd8+ {[%clk 0:01:33]}  Qf8 {[%clk 0:01:40]} 31. Qd3 {[%clk 0:01:28]}  Bc1 {[%clk 0:01:35]} 32. h5 {[%clk 0:01:22]}  Qc8 {[%clk 0:01:26]} 33. g4 {[%clk 0:01:18]}  b4 {[%clk 0:01:19]} 34. g5 {[%clk 0:01:15]}  a5 {[%clk 0:01:14]} 35. g6 {[%clk 0:01:12]}  fxg6 {[%clk 0:01:04]} 36. hxg6 {[%clk 0:01:08]}  a4 {[%clk 0:00:59]} 37. Nd4 {[%clk 0:01:07]}  b3 {[%clk 0:00:42]} 38. Qh3 {[%clk 0:01:04]}  Bh6 {[%clk 0:00:40]} 39. Nxb3 {[%clk 0:00:53]}  axb3 {[%clk 0:00:38]} 40. Qxb3 {[%clk 0:00:52]}  Qc1+ {[%clk 0:00:27]} 41. Kh2 {[%clk 0:00:49]}  Qf4+ {[%clk 0:00:26]} 42. Kg2 {[%clk 0:00:48]}  Qg5+ {[%clk 0:00:23]} 43. Kf3 {[%clk 0:00:39]}  Qf5+ {[%clk 0:00:21]} 0-1


[Site "https://www.chess.com"]

[Event "Titled Tuesday Blitz November 07 Late 2023"]
[White "Dodaro, Mattia"]
[Black "Ahmad, Khagan"]
[WhiteFideId "28583400"]
[BlackFideId "13431552"]
[WhiteElo "2267"]
[BlackElo "2468"]
[Result "0-1"]
[Round "2"]
[TimeControl "180+1"]
[Date "2023.11.07"]
[WhiteClock "0:00:44"]
[BlackClock "0:01:03"]
[Board "140"]

1. Nf3 {[%clk 0:02:54]}  Nf6 {[%clk 0:02:58]} 2. c4 {[%clk 0:02:52]}  c6 {[%clk 0:02:58]} 3. e3 {[%clk 0:02:52]}  d5 {[%clk 0:02:59]} 4. b3 {[%clk 0:02:52]}  Bg4 {[%clk 0:02:57]} 5. Bb2 {[%clk 0:02:52]}  Nbd7 {[%clk 0:02:57]} 6. Be2 {[%clk 0:02:53]}  e6 {[%clk 0:02:57]} 7. O-O {[%clk 0:02:52]}  Be7 {[%clk 0:02:58]} 8. d4 {[%clk 0:02:51]}  O-O {[%clk 0:02:58]} 9. Nbd2 {[%clk 0:02:51]}  Ne4 {[%clk 0:02:57]} 10. h3 {[%clk 0:02:50]}  Bxf3 {[%clk 0:02:56]} 11. Bxf3 {[%clk 0:02:48]}  f5 {[%clk 0:02:56]} 12. Rc1 {[%clk 0:02:29]}  Bd6 {[%clk 0:02:50]} 13. cxd5 {[%clk 0:02:26]}  exd5 {[%clk 0:02:50]} 14. Nxe4 {[%clk 0:02:18]}  fxe4 {[%clk 0:02:48]} 15. Bg4 {[%clk 0:02:18]}  Nf6 {[%clk 0:02:43]} 16. b4 {[%clk 0:02:14]}  Bxb4 {[%clk 0:02:36]} 17. Qb3 {[%clk 0:02:09]}  Qb6 {[%clk 0:02:29]} 18. Be6+ {[%clk 0:02:01]}  Kh8 {[%clk 0:02:29]} 19. Rb1 {[%clk 0:02:01]}  Bd6 {[%clk 0:02:26]} 20. Qa4 {[%clk 0:01:43]}  Rae8 {[%clk 0:02:17]} 21. Ba3 {[%clk 0:01:40]}  Qd8 {[%clk 0:02:16]} 22. Bg4 {[%clk 0:01:32]}  Nxg4 {[%clk 0:02:07]} 23. hxg4 {[%clk 0:01:33]}  Bxa3 {[%clk 0:01:50]} 24. Qxa3 {[%clk 0:01:34]}  Qb8 {[%clk 0:01:43]} 25. Qb2 {[%clk 0:01:20]}  Rf7 {[%clk 0:01:40]} 26. g3 {[%clk 0:01:15]}  Qd6 {[%clk 0:01:40]} 27. Kg2 {[%clk 0:01:13]}  Ref8 {[%clk 0:01:39]} 28. Qe2 {[%clk 0:01:11]}  b6 {[%clk 0:01:27]} 29. Rh1 {[%clk 0:01:11]}  Rxf2+ {[%clk 0:01:19]} 30. Qxf2 {[%clk 0:01:11]}  Rxf2+ {[%clk 0:01:20]} 31. Kxf2 {[%clk 0:01:12]}  Qf6+ {[%clk 0:01:20]} 32. Kg2 {[%clk 0:01:01]}  Qf3+ {[%clk 0:01:21]} 33. Kh3 {[%clk 0:01:01]}  Qxe3 {[%clk 0:01:21]} 34. Rhf1 {[%clk 0:01:00]}  h6 {[%clk 0:01:14]} 35. Rf7 {[%clk 0:00:59]}  Qd2 {[%clk 0:01:07]} 36. Rxa7 {[%clk 0:00:50]}  e3 {[%clk 0:01:07]} 37. Rxb6 {[%clk 0:00:50]}  e2 {[%clk 0:01:07]} 38. Rb8+ {[%clk 0:00:46]}  Kh7 {[%clk 0:01:06]} 39. Rbb7 {[%clk 0:00:47]}  Qxd4 {[%clk 0:01:04]} 40. Re7 {[%clk 0:00:44]}  Qxa7 {[%clk 0:01:03]} 0-1


[Site "https://www.chess.com"]

[Event "Titled Tuesday Blitz November 07 Late 2023"]
[White "Ventura Bolet, Maxim"]
[Black "Harish, Neeraj"]
[WhiteFideId "22238824"]
[BlackFideId "30958130"]
[WhiteElo "2466"]
[BlackElo "2260"]
[Result "1-0"]
[Round "2"]
[TimeControl "180+1"]
[Date "2023.11.07"]
[WhiteClock "0:01:30"]
[BlackClock "0:00:02"]
[Board "141"]

1. e4 {[%clk 0:03:00]}  c5 {[%clk 0:02:54]} 2. Nf3 {[%clk 0:03:00]}  Nc6 {[%clk 0:02:53]} 3. d4 {[%clk 0:03:01]}  cxd4 {[%clk 0:02:54]} 4. Nxd4 {[%clk 0:03:02]}  e5 {[%clk 0:02:54]} 5. Nb5 {[%clk 0:03:02]}  d6 {[%clk 0:02:53]} 6. N1c3 {[%clk 0:02:57]}  a6 {[%clk 0:02:47]} 7. Na3 {[%clk 0:02:58]}  Be7 {[%clk 0:02:48]} 8. g3 {[%clk 0:02:57]}  Nf6 {[%clk 0:02:33]} 9. Nc4 {[%clk 0:02:50]}  b5 {[%clk 0:02:28]} 10. Ne3 {[%clk 0:02:50]}  h5 {[%clk 0:02:28]} 11. Bg2 {[%clk 0:02:49]}  h4 {[%clk 0:02:26]} 12. O-O {[%clk 0:02:40]}  Be6 {[%clk 0:02:06]} 13. Ned5 {[%clk 0:02:33]}  Rb8 {[%clk 0:01:12]} 14. Nxf6+ {[%clk 0:02:17]}  Bxf6 {[%clk 0:01:10]} 15. Nd5 {[%clk 0:02:18]}  Bg5 {[%clk 0:01:03]} 16. f4 {[%clk 0:02:16]}  Bh6 {[%clk 0:00:47]} 17. Be3 {[%clk 0:02:10]}  hxg3 {[%clk 0:00:34]} 18. hxg3 {[%clk 0:02:11]}  Ne7 {[%clk 0:00:28]} 19. Qd2 {[%clk 0:01:48]}  exf4 {[%clk 0:00:13]} 20. Bxf4 {[%clk 0:01:38]}  Bxf4 {[%clk 0:00:12]} 21. Qxf4 {[%clk 0:01:39]}  Nxd5 {[%clk 0:00:12]} 22. exd5 {[%clk 0:01:40]}  g5 {[%clk 0:00:08]} 23. Qf2 {[%clk 0:01:36]}  Qb6 {[%clk 0:00:03]} 24. Qxb6 {[%clk 0:01:35]}  Rxb6 {[%clk 0:00:04]} 25. dxe6 {[%clk 0:01:36]}  fxe6 {[%clk 0:00:05]} 26. Rf6 {[%clk 0:01:33]}  Ke7 {[%clk 0:00:06]} 27. Raf1 {[%clk 0:01:33]}  Rc6 {[%clk 0:00:05]} 28. Rf7+ {[%clk 0:01:30]}  Ke8 {[%clk 0:00:02]} 29. Bxc6+ {[%clk 0:01:30]} 1-0


[Site "https://www.chess.com"]